Cogmind - Beta 12 @@@ ROGUE MODE // 2023.05.29 @ 14:46:12 Player: desik-rg Result: Smashed by cave-in Performance ------------- Evolutions (0) 0 Regions Visited (2) 400 Robots Destroyed (27) 135 Value Destroyed (668) 668 Prototype IDs (3) 60 Alien Tech Used (0) 0 Bonus (0) 0 TOTAL SCORE: 1263 Bonus ------- None Cogmind --------- Core Integrity 0/250 Matter 235/300 Energy 100/100 System Corruption 20% Temperature Hot (289) Movement Core (1400) Ox27 Location -10/Mines Parts ------- > --- POWER (1) -------- (None) > --- PROPULSION (2) --- (None) > --- UTILITY (2) ------ Huge Storage Unit > --- WEAPON (2) ------- Light Cannon > --- INVENTORY (25) --- Wheel Compact Wheel Compact Wheel Improved Heat Sink Disposable Heat Sink Disposable Heat Sink High-capacity Storage Unit High-capacity Battery (250) Weight Redist. System Machine Analyzer Light Armor Plating Light Armor Plating Light Armor Plating Hacking Suite Hacking Suite Particle Gun Heavy Assault Rifle Grenade Launcher Datajack Mining Claw Peak State ------------ > --- POWER ------------ Ion Engine > --- PROPULSION ------- Wheel Wheel > --- UTILITY ---------- Huge Storage Unit Light Armor Plating > --- WEAPON ----------- Particle Gun Assault Rifle > --- INVENTORY -------- Ion Engine Ion Engine Light Treads Light Treads Wheel Compact Wheel Compact Wheel Improved Heat Sink High-capacity Storage Unit Weight Redist. System Light Armor Plating Light Armor Plating Light Armor Plating Light Armor Plating Hacking Suite Hacking Suite Particle Gun Assault Rifle Grenade Launcher Datajack Mining Laser Mining Claw [Rating: 11] Favorites ----------- Power Ion Engine Engine Ion Engine Propulsion Light Treads Treads Light Treads Wheel Compact Wheel Utility High-capacity Storage Unit Storage High-capacity Storage Unit Protection Light Armor Plating Weapon Assault Rifle Energy Gun Medium Laser Ballistic Gun Assault Rifle Ballistic Cannon Light Cannon Special Weapon Mining Laser Slashing Weapon Mining Claw Build | -11 -10 -10 ------- Run | Jun Mat Min Slots Evolved . | . . . Power . | . . . Propulsion . | . . . Utility . | . . . Weapon . | . . . Parts Attached 77 | 7 58 12 Power 8 | 1 3 4 Engine 8 | 1 3 4 Core . | . . . Reactor . | . . . Propulsion 40 | 2 36 2 Treads 20 | . 18 2 Leg . | . . . Wheel 20 | 2 18 . Hover . | . . . Flight . | . . . Utility 7 | 1 4 2 Device . | . . . Storage 3 | 1 2 . Processor . | . . . Hackware . | . . . Protection 4 | . 2 2 Artifact . | . . . Weapon 22 | 3 15 4 Energy Gun 4 | 1 3 . Energy Cannon . | . . . Ballistic Gun 6 | 2 4 . Ballistic Cannon 4 | . 2 2 Launcher . | . . . Special Weapon 1 | . . 1 Impact Weapon . | . . . Slashing Weapon 7 | . 6 1 Piercing Weapon . | . . . Special Melee Weapon . | . . . Unidentified Prototypes . | . . . Parts Lost 10 | . . 10 Power 4 | . . 4 Propulsion 2 | . . 2 Utility 2 | . . 2 Weapon 2 | . . 2 Highest Loss Streak 10 | . . 10 To Critical Strikes . | . . . Average Slot Usage (%) 92 | . 92 83 Engine 13 | . 14 12 Treads 12 | . 12 12 Wheel 15 | . 15 7 Storage 14 | . 14 14 Protection 7 | . 7 12 Energy Gun 11 | . 12 . Ballistic Gun 9 | . 10 . Ballistic Cannon 2 | . 2 10 Slashing Weapon 3 | . 3 7 Naked Turns . | . . . Heaviest Build 94 | 14 94 94 Greatest Support 40 | 32 40 32 Greatest Overweight (x) 5 | . 5 2 Average Overweight (x) 1 | . 1 2 Largest Inventory Capacity 25 | 8 25 25 Average Capacity 20 | 6 20 25 Most Carried 25 | 4 25 25 Average Carried 16 | 2 16 23 Final Capacity 25 | 8 25 25 Final Carried 25 | 4 25 25 Class Distribution -------------------- 100% | Mutant Dominant Class ---------------- Mutant | -10/Materials Mutant | -10/Mines Resources | -11 -10 -10 ----------- Run | Jun Mat Min Matter Collected 1046 | 160 827 59 Remotely . | . . . Salvage Created 961 | . 886 75 Parts 70 | . 70 . Haulers Intercepted 1 | . 1 . Recyclers Shooed 1 | . 1 . Parts Field Recycled . | . . . Retrieved Matter . | . . . Parts Self-Destructed . | . . . Prevented . | . . . Kills | -11 -10 -10 ------- Run | Jun Mat Min Combat Hostiles Destroyed 25 | . 18 7 Melee 9 | . 4 5 Guns 12 | . 12 . Cannons 4 | . 2 2 Classes Destroyed 9 | . 8 1 Worker 1 | . 1 . Hauler 1 | . 1 . Recycler 1 | . 1 . Mechanic 1 | . 1 . Operator 2 | . 2 . Watcher 3 | . 3 . Swarmer 3 | . 3 . Grunt 15 | . 15 . Assembled 7 | . . 7 Best Kill Streak 7 | . 4 7 Combat Bots Only 7 | . 3 7 Max Kills in Single Turn 2 | . 2 1 Gunslinging . | . . . Exploded . | . . . Melee 1 | . 1 1 Uniques/NPCs Destroyed . | . . . Combat | -11 -10 -10 -------- Run | Jun Mat Min Damage Taken 2012 | . 574 1438 Core 279 | . 53 226 Absorbed by Shields . | . . . Redirected to Shielding 3 | . 3 . Regen/Repaired (Parts) 144 | . 144 . Core Remaining (%) 100 | 100 . . Volleys Fired 59 | . 48 11 Largest 2 | . 2 2 Hottest 100 | . 85 100 Shots Fired 107 | . 94 13 Gun 82 | . 82 . Cannon 23 | . 12 11 Launcher . | . . . Special 2 | . . 2 Kinetic 64 | . 53 11 Thermal 43 | . 41 2 Explosive . | . . . Electromagnetic . | . . . Robot Hit Streak 10 | . 10 4 Robot Miss Streak 4 | . 4 1 Penetration Max . | . . . Secondary Targets 1 | . 1 . Max Gunslinging Chain 1 | . 1 . Shots Hit Robots 87 | . 72 15 Core Hits 48 | . 40 8 Critical Kills . | . . . Critical Parts Destroyed . | . . . Critical Strikes 3 | . 3 . Burn 3 | . 3 . Melee Attacks 31 | . 20 11 Impact . | . . . Slashing 31 | . 20 11 Piercing . | . . . Sneak Attacks 4 | . 4 . Combat Hostiles 1 | . 1 . Follow-up Attacks . | . . . Damage Inflicted 1602 | . 1254 348 Guns 691 | . 691 . Cannons 242 | . 125 117 Explosions . | . . . Melee 669 | . 438 231 Ramming . | . . . Kinetic 551 | . 434 117 Thermal 382 | . 382 . Explosive . | . . . Electromagnetic . | . . . Impact . | . . . Slashing 669 | . 438 231 Piercing . | . . . Highest Corruption 17 | . . 17 Average Corruption 9 | . . 9 Corruption Purged . | . . . Corruption Blocked . | . . . Effects 2 | . . 2 Heat Flow Errors 1 | . . 1 Parts Rejected 1 | . . 1 Overload Shots . | . . . Overflow Damage 33 | . 30 3 Projectiles 3 | . . 3 Explosions . | . . . Melee 30 | . 30 . Knockbacks 2 | . 1 1 Impact . | . . . Kinetic 2 | . 1 1 Secondary . | . . . Self-Inflicted Damage . | . . . Shots . | . . . Rammed . | . . . Targets Rammed . | . . . Kicked . | . . . Crushed . | . . . Highest Temperature 289 | . 96 289 Average Temperature 37 | . 30 67 Received Heat Transfer 397 | . 279 118 Siege Activations . | . . . Robots Corrupted . | . . . Combat Hostiles . | . . . Parts Fried . | . . . Impact Corruptions . | . . . Robots Melted . | . . . Combat Hostiles . | . . . Parts Melted 1 | . 1 . Heat Transferred 1332 | . 1332 . Parts Sabotaged . | . . . Parts Stolen . | . . . Parts Stripped . | . . . Power Chain Reactions . | . . . Missiles Intercepted . | . . . Alert | -11 -10 -10 ------- Run | Jun Mat Min Peak Influence 220 | . 220 65 Initial 49 | . . 49 Average 92 | . 97 41 Maximum Alert Level 1 | . 1 . Low Security (%) 92 | 100 91 100 Level 1 7 | . 8 . Level 2 . | . . . Level 3 . | . . . Level 4 . | . . . Level 5 . | . . . High Security . | . . . Max Security . | . . . Squads Dispatched 5 | . 5 . Investigation 3 | . 3 . Extermination . | . . . Reinforcement 2 | . 2 . Assault . | . . . Garrison . | . . . Intercept . | . . . Searches Triggered . | . . . Construction Impeded . | . . . Haulers Reinforced . | . . . Active Scanning Responses . | . . . Cargo Convoy Interrupts . | . . . Stealth | -11 -10 -10 --------- Run | Jun Mat Min Distress Signals 2 | . 2 . Communications Jammed . | . . . Distress Signals . | . . . Times Spotted 49 | . 27 22 Peak Tracking Total 22 | . 4 22 Tactical Retreats 3 | . 2 1 Traps | -11 -10 -10 ------- Run | Jun Mat Min Traps Triggered 1 | . 1 . Indirectly . | . . . Trap Hack Attempts . | . . . Triggered . | . . . Disarmed . | . . . Reprogrammed . | . . . Reused . | . . . Traps Extracted . | . . . Installed . | . . . Triggered . | . . . Machines | -11 -10 -10 ---------- Run | Jun Mat Min Machines Disabled . | . . . Max in Single Turn . | . . . Machines Repaired . | . . . Machines Sabotaged . | . . . Overloaded Fab Kills . | . . . Hacking | -11 -10 -10 --------- Run | Jun Mat Min Machines Accessed 8 | . 8 . Terminals 5 | . 5 . Fabricators . | . . . Repair Stations 1 | . 1 . Recycling Units 2 | . 2 . Scanalyzers . | . . . Garrison Access . | . . . Total Hacks 31 | . 31 . Successful 16 | . 16 . Failed 14 | . 14 . Catastrophic . | . . . Database Lockouts 1 | . 1 . Manual 25 | . 25 . Terminals 22 | . 22 . Fabricators . | . . . Repair Stations 4 | . 4 . Recycling Units 5 | . 5 . Scanalyzers . | . . . Garrison Access . | . . . Terminal Hacks 4 | . 4 . Robot Analysis 2 | . 2 . Prototype ID Bank 2 | . 2 . Fabricator Hacks . | . . . Repair Station Hacks 4 | . 4 . Scan Component 2 | . 2 . Repair 2 | . 2 . Recycling Unit Hacks 1 | . 1 . Retrieve Matter 1 | . 1 . Scanalyzer . | . . . Garrison Access Hacks . | . . . Unauthorized Hacks 7 | . 7 . Terminals 3 | . 3 . Botnet 3 | . 3 . Fabricators . | . . . Repair Stations . | . . . Recycling Units 4 | . 4 . Monitor 1 | . 1 . Recyclers 1 | . 1 . Tunnel 2 | . 2 . Scanalyzers . | . . . Garrison Access . | . . . Data Cores Recovered . | . . . Used . | . . . Hacking Detections 7 | . 7 . Full Trace Events . | . . . Feedback Events . | . . . Feedback Blocked . | . . . Robot Schematics Acquired . | . . . Robots Built . | . . . Authchips . | . . . Time . | . . . Total Robot Build Rating . | . . . Part Schematics Acquired . | . . . Parts Built . | . . . Authchips . | . . . Time . | . . . Total Part Build Rating . | . . . Parts Repaired 2 | . 2 . Time 52 | . 52 . Parts Recycled . | . . . Recycled Matter . | . . . Retrieved Matter 150 | . 150 . Retrieved Components . | . . . Parts Scanalyzed . | . . . Part Schematics Acquired . | . . . Parts Damaged . | . . . Bothacking | -11 -10 -10 ------------ Run | Jun Mat Min Used RIF Installer . | . . . Robots Hacked . | . . . Non-combat . | . . . Combat . | . . . Robot Hacks Applied . | . . . Relay Couplers Released . | . . . Fabnet Peak Effective % . | . . . Robots Rewired . | . . . Allies Hacked . | . . . Hacks Repelled . | . . . Allies | -11 -10 -10 -------- Run | Jun Mat Min Total Allies . | . . . Largest Group . | . . . Highest-Rated Group . | . . . Highest-Rated Ally . | . . . Total Orders . | . . . Ally Attacks . | . . . Total Damage . | . . . Kills . | . . . Allies Corrupted . | . . . Allies Melted . | . . . Intel | -11 -10 -10 ------- Run | Jun Mat Min Robot Analysis Total 2 | . 2 . Derelict Logs Recovered . | . . . Drone Launches . | . . . Drone Recoveries . | . . . Exploration | -11 -10 -10 ------------- Run | Jun Mat Min Turns Passed 1984 | 55 1849 80 Spaces Moved 930 | 42 885 3 Core 1 | 1 . . Treads 179 | . 179 . Legs . | . . . Wheels 750 | 41 706 3 Hover . | . . . Flight . | . . . Fastest Speed 50 | 50 100 130 Average Speed 143 | 98 145 130 Slowest Speed 240 | 100 240 130 Overloaded Moves . | . . . Propulsion Burnouts . | . . . Robots Hopped . | . . . Cave-ins Triggered 4 | . . 4 Exploration Rate (%) 34 | 3 99 2 Regions Visited 2 Branch Regions 1 Pre-discovered Areas 2 | . 2 . Known Exits Taken . | . . . Unknown Exits Taken 2 | 1 1 . Scrap Searched . | . . . Spaces Dug 2 | . . 2 Terrain Destroyed 2 | . . 2 Melee . | . . . Projectile 2 | . . 2 AOE . | . . . Terrain Rammed . | . . . Walls Destroyed . | . . . Machines Disabled . | . . . Actions | -11 -10 -10 --------- Run | Jun Mat Min Total 1385 | 52 1296 37 Wait 224 | . 224 . Move 928 | 41 884 3 Hop . | . . . Pick Up 42 | 3 39 . Fast Attach 13 | 7 5 1 Attach 5 | . . 5 Detach 3 | 1 2 . Swap 59 | . 53 6 Drop 21 | . 21 . Fire 59 | . 48 11 Melee 31 | . 20 11 Ram . | . . . Kick . | . . . Crush . | . . . Escape Stasis . | . . . Rewire . | . . . Trap . | . . . Miscellaneous . | . . . Route ------- -11/Junkyard -10/Materials (discovered 4 exits: [*Mat x3] / [*Min]) -10/Mines History --------- Turn | Location | Event 30 | -11/Junkyard | Discovered new exit (range 15) 56 | -11/Junkyard | Entered Materials 88 | -10/Materials | Discovered new exit (range 6) 304 | -10/Materials | Build established: Mutant 790 | -10/Materials | Discovered new exit (range 15) 985 | -10/Materials | Discovered new exit (range 16) 1351 | -10/Materials | Discovered new exit (range 15) 1602 | -10/Materials | Repaired Lgt. Treads 1629 | -10/Materials | Repaired Lgt. Treads 1715 | -10/Materials | Central database locked down 1905 | -10/Materials | Entered Mines 1906 | -10/Mines | Assembled infested the area 1907 | -10/Mines | Met a Derelict bent on vengeance 1911 | -10/Mines | Assisted by a Guerilla fighting off Assembled 1944 | -10/Mines | Crushed by falling debris 1962 | -10/Mines | Crushed by falling debris 1965 | -10/Mines | Core integrity fell below 50% 1971 | -10/Mines | Crushed by falling debris 1971 | -10/Mines | System corruption reached 10% 1977 | -10/Mines | Core integrity fell below 20% 1986 | -10/Mines | Crushed by falling debris 1986 | -10/Mines | Smashed by cave-in Last Messages --------------- 01965_ Acquired Ion Engine. 01968_ Destroyed Asb. Hover Unit. 01971_ The unstable cave ceiling collapses. 01971_ Crushed by falling debris. 01971_ Lgt. Treads destroyed. 01971_ System corrupted by crushing effect (+5). 01971_ Ion Engine destroyed. 01971_ System corrupted by crushing effect (+2). 01971_ Lgt. Cannon destroyed. 01971_ System corrupted by crushing effect (+4). 01972_ as-62595 destroyed. 01980_ System corrupted: Heat flow error (+248). 01982_ as-78698 destroyed. 01983_ Acquired 6 matter. 01986_ The unstable cave ceiling collapses. 01986_ Crushed by falling debris. 01986_ Ion Engine destroyed. 01986_ System corrupted by crushing effect (+1). 01986_ Lgt. Armor Plating destroyed. 01986_ System corrupted by crushing effect (+2). Map ----- +----------------------------------------------------+ | ????????????????????????????????? | | ????????????????????????????????? | | ????????????????????????????????? | | ????????????????????????????????? | | ????????????????????????????????? | | ????????????????????????????????? | | ????????????????????????????????? | | ????????????????????????????????? | | ????????????????????????????????? | | ????????????????????????????????? | | ????????????????????????????????? | | ????????????????????????????????? | | ????????????????????????????????? | | ????????????????????????????????? | | ????????????????????????????????? | | ????????????????????????????????? | | ????????????????????????????????? | | ????????????????????????????????? | | ????????????????????????????????? | | ????????????????????????????????? | | ????????????????????????????????? | | ????????????????????????????????? | | ????????????????????????????????? | | ????????????????????????????????? | | ????????????????????????###?????? | | ????????????????????????#@##????? | | ????????????????????????##a#????? | | ??????????????????????###%a##???? | | ??????????????????????# != #???? | | ????????????????????#" %%% #??? | | ????????????????????# =% #??? | | ???????????????????# % ##??? | | ?????????????????? %% ###???? | | ???????????????? ####?????? | | ?????????????? #######?????????? | | ????????????? ?????????????????? | | ????????????????????????????????? | | ????????????????????????????????? | | ????????????????????????????????? | | ????????????????????????????????? | | ????????????????????????????????? | | ????????????????????????????????? | | ????????????????????????????????? | | ????????????????????????????????? | | ????????????????????????????????? | | ????????????????????????????????? | | ????????????????????????????????? | | ????????????????????????????????? | | ????????????????????????????????? | | ????????????????????????????????? | +----------------------------------------------------+ Best States ------------- Heat Dissipation 25 Energy Generation 10 Energy Capacity 250 Matter Stores 300 Matter Capacity 300 Sight Range 16 Terrain Scan Density 10 Armor Coverage 150 Weapon Shielding 33 Evasion (%) 40 Recoil Reduction 2 Item Schematics ----------------- None Robot Schematics ------------------ None Fabricated ------------ Nothing Alien Tech Used ----------------- None Achievements -------------- None Challenges ------------ None Game ------ Seed MicroTerrainArray Manual? 0 Play Time 01:27:39 Cumulative 175.1 hours Start 2023.05.29 @ 12:35:17 End 2023.05.29 @ 14:46:12 Sessions 1 Manual Loads 0 Difficulty Rogue Special Mode None Game No. 15 Rogue 13 Adventurer 2 Explorer 0 Win Type - Total 1 Types 1/0/0/0/0/0/0/0/0 Lore% 27 Gallery% 40 Achievement% 33 Wizard Run 0 Options --------- ASCII 0 Keyboard 0 Movement Mouse Keybinds 0 Fullscreen 1 Font 24/Smallcaps Map View 76x50 Tactical HUD 1 Map Filters NONE Filters NONE Steam 1 RUN: f6966a65-535f-43f9-b299-e8e65e6b1a95